[Event "*** SCC Grand Prix: Titled Tuesday Blitz"]
[Site "Chess.com"]
[Date "2020.10.13"]
[Round "10"]
[White "Matveev_Vladimir"]
[Black "Semen16"]
[Result "1-0"]
[WhiteElo "2695"]
[BlackElo "2490"]
[TimeControl "180+1"]
[EndTime "11:55:20 PDT"]
[Termination "Matveev_Vladimir won by checkmate"]

1. d4 {[%clk 0:03:00.9]} 1... d5 {[%clk 0:03:00.1]} 2. c4 {[%clk 0:03:01.1]}
2... dxc4 {[%clk 0:03:00.4]} 3. Nf3 {[%clk 0:03:00.7]} 3... Nf6 {[%clk
0:02:59.8]} 4. e3 {[%clk 0:03:01.3]} 4... Bg4 {[%clk 0:02:54.3]} 5. Bxc4 {[%clk
0:03:00.8]} 5... e6 {[%clk 0:02:54.7]} 6. Qb3 {[%clk 0:02:58.5]} 6... Nc6 {[%clk
0:02:40]} 7. Qxb7 {[%clk 0:02:49.4]} 7... Bxf3 {[%clk 0:02:34.2]} 8. gxf3 {[%clk
0:02:45.3]} 8... Na5 {[%clk 0:02:09.1]} 9. Bb5+ {[%clk 0:02:42.5]} 9... Ke7
{[%clk 0:02:04.9]} 10. Qa6 {[%clk 0:02:42.1]} 10... c6 {[%clk 0:01:58.2]} 11.
Be2 {[%clk 0:02:41.7]} 11... Qb6 {[%clk 0:01:53.5]} 12. Qd3 {[%clk 0:02:36.1]}
12... Ke8 {[%clk 0:01:44.7]} 13. Nc3 {[%clk 0:02:35.1]} 13... Rd8 {[%clk
0:01:41.6]} 14. f4 {[%clk 0:02:32.5]} 14... c5 {[%clk 0:01:38.6]} 15. Qb5+
{[%clk 0:02:27.5]} 15... Qxb5 {[%clk 0:01:34.2]} 16. Bxb5+ {[%clk 0:02:28.4]}
16... Ke7 {[%clk 0:01:34.3]} 17. dxc5 {[%clk 0:02:27.8]} 17... Rc8 {[%clk
0:01:31.6]} 18. b4 {[%clk 0:02:27.2]} 18... Nc6 {[%clk 0:01:31.4]} 19. a3 {[%clk
0:02:22.4]} 19... g6 {[%clk 0:01:28.8]} 20. Bb2 {[%clk 0:02:20]} 20... Bg7
{[%clk 0:01:29.1]} 21. Ne4 {[%clk 0:01:59.9]} 21... Nxe4 {[%clk 0:01:24.7]} 22.
Bxg7 {[%clk 0:02:00.8]} 22... Rhd8 {[%clk 0:01:24.3]} 23. f3 {[%clk 0:01:52.7]}
23... Nd2 {[%clk 0:01:14.9]} 24. Ke2 {[%clk 0:01:35.9]} 24... f6 {[%clk
0:01:12.1]} 25. Rhd1 {[%clk 0:01:29.5]} 25... Nb3 {[%clk 0:01:11.2]} 26. Rab1
{[%clk 0:01:28.9]} 26... Nbd4+ {[%clk 0:01:07.8]} 27. exd4 {[%clk 0:01:26.1]}
27... Nxd4+ {[%clk 0:01:08.1]} 28. Rxd4 {[%clk 0:01:26.7]} 28... Rxd4 {[%clk
0:01:08.9]} 29. Rd1 {[%clk 0:01:19.5]} 29... Rxd1 {[%clk 0:01:02.8]} 30. Kxd1
{[%clk 0:01:20.4]} 30... h5 {[%clk 0:01:03.1]} 31. Ba6 {[%clk 0:00:51.1]} 31...
Rc7 {[%clk 0:00:49.7]} 32. h4 {[%clk 0:00:44.1]} 32... Kf7 {[%clk 0:00:49.6]}
33. Bh6 {[%clk 0:00:44.2]} 33... Kg8 {[%clk 0:00:42.1]} 34. f5 {[%clk
0:00:43.5]} 34... gxf5 {[%clk 0:00:35.1]} 35. Bf4 {[%clk 0:00:41.4]} 35... e5
{[%clk 0:00:35]} 36. Be3 {[%clk 0:00:41.2]} 36... f4 {[%clk 0:00:34.6]} 37. Bf2
{[%clk 0:00:41.3]} 37... Kf7 {[%clk 0:00:33.2]} 38. Bc4+ {[%clk 0:00:35.6]}
38... Kg6 {[%clk 0:00:30.5]} 39. b5 {[%clk 0:00:35.9]} 39... f5 {[%clk
0:00:29.3]} 40. c6 {[%clk 0:00:32.9]} 40... e4 {[%clk 0:00:27.7]} 41. Ke2 {[%clk
0:00:31.7]} 41... e3 {[%clk 0:00:27.4]} 42. Be1 {[%clk 0:00:32]} 42... Kf6
{[%clk 0:00:25.3]} 43. Bc3+ {[%clk 0:00:31.2]} 43... Ke7 {[%clk 0:00:23.1]} 44.
Be5 {[%clk 0:00:31.6]} 44... Rc8 {[%clk 0:00:22.6]} 45. Bxf4 {[%clk 0:00:31.8]}
45... Kf6 {[%clk 0:00:20.5]} 46. Kxe3 {[%clk 0:00:31.6]} 46... Re8+ {[%clk
0:00:19.9]} 47. Kd4 {[%clk 0:00:31.3]} 47... Rd8+ {[%clk 0:00:19.2]} 48. Kc5
{[%clk 0:00:31.3]} 48... a6 {[%clk 0:00:15.6]} 49. Bg5+ {[%clk 0:00:32.2]} 49...
Ke5 {[%clk 0:00:15.3]} 50. Bxd8 {[%clk 0:00:32.7]} 50... axb5 {[%clk 0:00:15.7]}
51. Bxb5 {[%clk 0:00:33.6]} 51... f4 {[%clk 0:00:16.1]} 52. c7 {[%clk
0:00:34.5]} 52... Ke6 {[%clk 0:00:15.6]} 53. c8=Q+ {[%clk 0:00:34.5]} 53... Kf7
{[%clk 0:00:16]} 54. Qf5+ {[%clk 0:00:34]} 54... Kg7 {[%clk 0:00:16.4]} 55. Qf6+
{[%clk 0:00:32.4]} 55... Kh7 {[%clk 0:00:16.4]} 56. Bd3+ {[%clk 0:00:32.9]}
56... Kg8 {[%clk 0:00:16.8]} 57. Bc4+ {[%clk 0:00:31.2]} 57... Kh7 {[%clk
0:00:17]} 58. Qf7+ {[%clk 0:00:32.1]} 58... Kh6 {[%clk 0:00:17.1]} 59. Bg5#
{[%clk 0:00:32.5]} 1-0

[Event "*** SCC Grand Prix: Titled Tuesday Blitz"]
[Site "Chess.com"]
[Date "2020.10.13"]
[Round "10"]
[White "nitpicker"]
[Black "TST2014"]
[Result "1/2-1/2"]
[WhiteElo "2297"]
[BlackElo "2519"]
[TimeControl "180+1"]
[EndTime "11:55:20 PDT"]
[Termination "Game drawn - insufficient material"]

1. d4 {[%clk 0:03:00.9]} 1... Nf6 {[%clk 0:02:59.4]} 2. c4 {[%clk 0:03:00.5]}
2... c5 {[%clk 0:02:57.6]} 3. d5 {[%clk 0:03:00]} 3... b5 {[%clk 0:02:57.3]} 4.
cxb5 {[%clk 0:03:00.2]} 4... a6 {[%clk 0:02:57.5]} 5. bxa6 {[%clk 0:03:00.2]}
5... Bxa6 {[%clk 0:02:58.4]} 6. Nc3 {[%clk 0:03:00.1]} 6... g6 {[%clk 0:02:58]}
7. e4 {[%clk 0:02:59]} 7... Bxf1 {[%clk 0:02:57.9]} 8. Kxf1 {[%clk 0:02:59.7]}
8... d6 {[%clk 0:02:58.4]} 9. Nf3 {[%clk 0:03:00]} 9... Qc8 {[%clk 0:02:58]} 10.
h3 {[%clk 0:02:57.3]} 10... Qa6+ {[%clk 0:02:54.3]} 11. Kg1 {[%clk 0:02:48.9]}
11... Nbd7 {[%clk 0:02:51.6]} 12. Kh2 {[%clk 0:02:48.4]} 12... Bg7 {[%clk
0:02:50.5]} 13. Re1 {[%clk 0:02:45.6]} 13... O-O {[%clk 0:02:50.1]} 14. a4
{[%clk 0:02:41.1]} 14... Rfb8 {[%clk 0:02:48.3]} 15. Qe2 {[%clk 0:02:31.5]}
15... Ne8 {[%clk 0:02:42.6]} 16. Bf4 {[%clk 0:02:24.4]} 16... Qxe2 {[%clk
0:02:35.9]} 17. Rxe2 {[%clk 0:02:23.1]} 17... Rxb2 {[%clk 0:02:21.9]} 18. Rxb2
{[%clk 0:01:54.3]} 18... Bxc3 {[%clk 0:02:20.9]} 19. Rb7 {[%clk 0:01:53.4]}
19... Bxa1 {[%clk 0:02:17.1]} 20. Rxd7 {[%clk 0:01:53.2]} 20... Kf8 {[%clk
0:02:12.5]} 21. e5 {[%clk 0:01:46.7]} 21... dxe5 {[%clk 0:01:38.9]} 22. Bxe5
{[%clk 0:01:45.4]} 22... Bxe5+ {[%clk 0:01:36]} 23. Nxe5 {[%clk 0:01:45.4]}
23... Rxa4 {[%clk 0:01:33.5]} 24. Rd8 {[%clk 0:01:32.7]} 24... f6 {[%clk
0:00:22.4]} 25. Nd7+ {[%clk 0:01:32.6]} 25... Kf7 {[%clk 0:00:22.4]} 26. Nxc5
{[%clk 0:01:32.7]} 26... Ra2 {[%clk 0:00:17.8]} 27. Kg3 {[%clk 0:01:29.4]} 27...
Nd6 {[%clk 0:00:17.6]} 28. Ne6 {[%clk 0:01:26.7]} 28... g5 {[%clk 0:00:16.9]}
29. Rf8+ {[%clk 0:01:19.7]} 29... Kg6 {[%clk 0:00:16.6]} 30. Rg8+ {[%clk
0:00:41.7]} 30... Kf5 {[%clk 0:00:15.3]} 31. Kf3 {[%clk 0:00:41.9]} 31... Ne4
{[%clk 0:00:08.8]} 32. Rg7 {[%clk 0:00:36.9]} 32... Rxf2+ {[%clk 0:00:07.6]} 33.
Ke3 {[%clk 0:00:37]} 33... Rxg2 {[%clk 0:00:07.9]} 34. Nd4+ {[%clk 0:00:34.2]}
34... Ke5 {[%clk 0:00:07.4]} 35. Nc6+ {[%clk 0:00:32.7]} 35... Kxd5 {[%clk
0:00:07.5]} 36. Nxe7+ {[%clk 0:00:32.6]} 36... Ke5 {[%clk 0:00:07.3]} 37. Nc6+
{[%clk 0:00:31.7]} 37... Kd5 {[%clk 0:00:07.3]} 38. Ne7+ {[%clk 0:00:31.6]}
38... Ke5 {[%clk 0:00:06.5]} 39. Nc6+ {[%clk 0:00:31.5]} 39... Kd6 {[%clk
0:00:07]} 40. Nd4 {[%clk 0:00:27.3]} 40... Ng3 {[%clk 0:00:06.2]} 41. Kf3 {[%clk
0:00:26.6]} 41... Rg1 {[%clk 0:00:06.3]} 42. Kf2 {[%clk 0:00:26.8]} 42... Rd1
{[%clk 0:00:06]} 43. Nb5+ {[%clk 0:00:21.6]} 43... Kc5 {[%clk 0:00:05.7]} 44.
Kxg3 {[%clk 0:00:20.7]} 44... Kxb5 {[%clk 0:00:05.9]} 45. Rxh7 {[%clk 0:00:21]}
45... Rd4 {[%clk 0:00:05.8]} 46. Rf7 {[%clk 0:00:20.5]} 46... Rf4 {[%clk
0:00:06]} 47. h4 {[%clk 0:00:18.5]} 47... Rxh4 {[%clk 0:00:04.1]} 48. Rxf6
{[%clk 0:00:17.8]} 48... Rf4 {[%clk 0:00:04.2]} 49. Rxf4 {[%clk 0:00:17]} 49...
gxf4+ {[%clk 0:00:04.3]} 50. Kxf4 {[%clk 0:00:17.3]} 1/2-1/2

[Event "*** SCC Grand Prix: Titled Tuesday Blitz"]
[Site "Chess.com"]
[Date "2020.10.13"]
[Round "10"]
[White "FMKonstantin_Twitch"]
[Black "Slovak_fighter2000"]
[Result "1-0"]
[WhiteElo "2560"]
[BlackElo "2408"]
[TimeControl "180+1"]
[EndTime "11:55:21 PDT"]
[Termination "FMKonstantin_Twitch won by resignation"]

1. e4 {[%clk 0:03:00.9]} 1... g6 {[%clk 0:02:58]} 2. Nc3 {[%clk 0:03:01.8]} 2...
Bg7 {[%clk 0:02:57.9]} 3. d4 {[%clk 0:03:00.6]} 3... d6 {[%clk 0:02:57.8]} 4.
Be3 {[%clk 0:03:00.1]} 4... a6 {[%clk 0:02:49.1]} 5. f3 {[%clk 0:02:57.1]} 5...
b5 {[%clk 0:02:48.9]} 6. Qd2 {[%clk 0:02:57.5]} 6... Bb7 {[%clk 0:02:48.5]} 7.
h4 {[%clk 0:02:55.6]} 7... h5 {[%clk 0:02:46.7]} 8. Nh3 {[%clk 0:02:54.8]} 8...
Nd7 {[%clk 0:02:44.9]} 9. Ng5 {[%clk 0:02:52.7]} 9... e6 {[%clk 0:02:44.6]} 10.
a4 {[%clk 0:02:47.8]} 10... c6 {[%clk 0:02:39.8]} 11. Ne2 {[%clk 0:02:46.9]}
11... Ne7 {[%clk 0:02:35.1]} 12. Nf4 {[%clk 0:02:46.3]} 12... Nf8 {[%clk
0:02:27.4]} 13. c4 {[%clk 0:02:40.8]} 13... bxc4 {[%clk 0:02:18.8]} 14. Bxc4
{[%clk 0:02:41.7]} 14... d5 {[%clk 0:02:19]} 15. Be2 {[%clk 0:02:40.1]} 15...
Qd7 {[%clk 0:01:44.3]} 16. Nd3 {[%clk 0:02:33.7]} 16... Qc8 {[%clk 0:01:39.8]}
17. Nc5 {[%clk 0:02:30.1]} 17... Nd7 {[%clk 0:01:36.4]} 18. Rc1 {[%clk
0:02:24.5]} 18... Nxc5 {[%clk 0:01:35.8]} 19. Rxc5 {[%clk 0:02:25.4]} 19... Qd7
{[%clk 0:01:29.2]} 20. O-O {[%clk 0:02:18.5]} 20... O-O {[%clk 0:01:25]} 21. e5
{[%clk 0:02:11.9]} 21... Rfb8 {[%clk 0:01:17.4]} 22. g4 {[%clk 0:02:09.9]} 22...
hxg4 {[%clk 0:01:14.6]} 23. fxg4 {[%clk 0:02:10.8]} 23... Rf8 {[%clk 0:01:07.7]}
24. h5 {[%clk 0:02:08.1]} 24... gxh5 {[%clk 0:01:04.6]} 25. gxh5 {[%clk
0:02:09]} 25... Nf5 {[%clk 0:01:04.9]} 26. Bd3 {[%clk 0:02:08.8]} 26... Nxe3
{[%clk 0:00:52.2]} 27. Qxe3 {[%clk 0:02:09.7]} 27... f5 {[%clk 0:00:51.8]} 28.
Qg3 {[%clk 0:01:56.2]} 28... Kh8 {[%clk 0:00:33.8]} 29. Nh3 {[%clk 0:01:31.1]}
29... Bh6 {[%clk 0:00:33]} 30. Nf4 {[%clk 0:01:31.7]} 30... Bxf4 {[%clk
0:00:31.1]} 31. Qxf4 {[%clk 0:01:32.3]} 31... Rg8+ {[%clk 0:00:29.7]} 32. Kf2
{[%clk 0:01:31]} 32... Qg7 {[%clk 0:00:29.5]} 33. Ke2 {[%clk 0:01:31]} 33... Kh7
{[%clk 0:00:19.3]} 34. Kd2 {[%clk 0:01:23.2]} 34... Qg2+ {[%clk 0:00:18.9]} 35.
Kc3 {[%clk 0:01:20.6]} 35... Rg4 {[%clk 0:00:16.4]} 36. Bxf5+ {[%clk 0:01:03.5]}
36... exf5 {[%clk 0:00:14.5]} 37. Qxf5+ {[%clk 0:01:04.4]} 37... Kh6 {[%clk
0:00:13]} 38. Qe6+ {[%clk 0:00:56.8]} 38... Kxh5 {[%clk 0:00:10.8]} 39. Qf7+
{[%clk 0:00:56.5]} 39... Kh4 {[%clk 0:00:09.4]} 40. Qh7+ {[%clk 0:00:39.4]}
40... Kg3 {[%clk 0:00:09.5]} 41. Rd1 {[%clk 0:00:39.6]} 41... Rf4 {[%clk
0:00:06.7]} 42. Qg7+ {[%clk 0:00:31.3]} 42... Kh2 {[%clk 0:00:06.1]} 43. Qh6+
{[%clk 0:00:26.1]} 43... Kg3 {[%clk 0:00:05.6]} 44. Qg5+ {[%clk 0:00:26.3]}
44... Rg4 {[%clk 0:00:05.6]} 45. Rd3+ {[%clk 0:00:25.6]} 45... Kh2 {[%clk
0:00:05.9]} 46. Qh5+ {[%clk 0:00:24.7]} 46... Kg1 {[%clk 0:00:05.9]} 47. Rd1+
{[%clk 0:00:24.1]} 47... Kf2 {[%clk 0:00:05.3]} 48. Rd2+ {[%clk 0:00:24.4]}
48... Ke3 {[%clk 0:00:04.4]} 49. Rxg2 {[%clk 0:00:25.3]} 49... Rxg2 {[%clk
0:00:04.6]} 50. Qh6+ {[%clk 0:00:23.4]} 50... Ke4 {[%clk 0:00:03.8]} 51. Qh7+
{[%clk 0:00:23.4]} 51... Ke3 {[%clk 0:00:02.7]} 52. Qxb7 {[%clk 0:00:24.3]} 1-0

[Event "*** SCC Grand Prix: Titled Tuesday Blitz"]
[Site "Chess.com"]
[Date "2020.10.13"]
[Round "10"]
[White "elohunter1999"]
[Black "witcher8"]
[Result "1/2-1/2"]
[WhiteElo "2595"]
[BlackElo "2433"]
[TimeControl "180+1"]
[EndTime "11:55:25 PDT"]
[Termination "Game drawn - insufficient material"]

1. e4 {[%clk 0:03:00.9]} 1... c6 {[%clk 0:02:59.8]} 2. Nc3 {[%clk 0:02:59.4]}
2... d5 {[%clk 0:03:00.7]} 3. Nf3 {[%clk 0:02:59.7]} 3... Bg4 {[%clk 0:03:00.7]}
4. h3 {[%clk 0:02:59.8]} 4... Bh5 {[%clk 0:03:00.8]} 5. exd5 {[%clk 0:02:57.5]}
5... cxd5 {[%clk 0:03:00.5]} 6. g4 {[%clk 0:02:58.4]} 6... Bg6 {[%clk
0:03:00.5]} 7. Ne5 {[%clk 0:02:55.3]} 7... Nc6 {[%clk 0:03:00.1]} 8. d4 {[%clk
0:02:54.9]} 8... e6 {[%clk 0:02:56.4]} 9. Bf4 {[%clk 0:02:46.3]} 9... Bb4 {[%clk
0:02:37.1]} 10. Bd3 {[%clk 0:02:34.2]} 10... Qa5 {[%clk 0:02:22.3]} 11. Nxg6
{[%clk 0:02:21]} 11... hxg6 {[%clk 0:02:20.8]} 12. Qd2 {[%clk 0:02:09.9]} 12...
Nxd4 {[%clk 0:02:15.8]} 13. O-O-O {[%clk 0:01:40.7]} 13... Bxc3 {[%clk
0:02:10.9]} 14. Qxc3 {[%clk 0:01:35]} 14... Qxc3 {[%clk 0:02:08.8]} 15. bxc3
{[%clk 0:01:35.9]} 15... Nc6 {[%clk 0:02:06.6]} 16. c4 {[%clk 0:01:36.5]} 16...
Nf6 {[%clk 0:01:58.7]} 17. g5 {[%clk 0:01:31.4]} 17... Nh5 {[%clk 0:01:42.7]}
18. Bd6 {[%clk 0:01:24.6]} 18... O-O-O {[%clk 0:01:34.5]} 19. c5 {[%clk
0:01:20.2]} 19... Rxd6 {[%clk 0:01:00.2]} 20. cxd6 {[%clk 0:01:20]} 20... Nf4
{[%clk 0:00:58.7]} 21. h4 {[%clk 0:01:16]} 21... Kd7 {[%clk 0:00:57]} 22. c4
{[%clk 0:01:15.2]} 22... Kxd6 {[%clk 0:00:52.5]} 23. cxd5 {[%clk 0:01:14.8]}
23... Nxd5 {[%clk 0:00:51.4]} 24. Bc4 {[%clk 0:01:12.8]} 24... Ne7 {[%clk
0:00:50.7]} 25. Kb2 {[%clk 0:01:10.8]} 25... a6 {[%clk 0:00:49.5]} 26. Be2
{[%clk 0:01:08.3]} 26... Nf5 {[%clk 0:00:45.6]} 27. h5 {[%clk 0:01:08.2]} 27...
gxh5 {[%clk 0:00:41]} 28. Rxh5 {[%clk 0:01:09.1]} 28... Rxh5 {[%clk 0:00:28.9]}
29. Bxh5 {[%clk 0:01:10]} 29... g6 {[%clk 0:00:28.4]} 30. Bf3 {[%clk 0:01:06.7]}
30... Ke5 {[%clk 0:00:28.5]} 31. Rc1 {[%clk 0:01:05.2]} 31... Nfe7 {[%clk
0:00:23.9]} 32. Bxd5 {[%clk 0:00:53.4]} 32... Nxd5 {[%clk 0:00:23.9]} 33. Rc8
{[%clk 0:00:54]} 33... Kf5 {[%clk 0:00:20]} 34. Rf8 {[%clk 0:00:54]} 34... Kxg5
{[%clk 0:00:16.9]} 35. Rxf7 {[%clk 0:00:54.5]} 35... b6 {[%clk 0:00:17.5]} 36.
Ra7 {[%clk 0:00:49.9]} 36... a5 {[%clk 0:00:17.6]} 37. Kb3 {[%clk 0:00:50.5]}
37... Kf4 {[%clk 0:00:15.5]} 38. Rg7 {[%clk 0:00:49.2]} 38... g5 {[%clk
0:00:15.4]} 39. Kc4 {[%clk 0:00:49.2]} 39... g4 {[%clk 0:00:14.4]} 40. a3 {[%clk
0:00:44.4]} 40... Kf3 {[%clk 0:00:13.8]} 41. Rg6 {[%clk 0:00:39.8]} 41... Nf4
{[%clk 0:00:13.6]} 42. Rf6 {[%clk 0:00:39.9]} 42... e5 {[%clk 0:00:14.2]} 43.
Rf5 {[%clk 0:00:34.4]} 43... Kxf2 {[%clk 0:00:13.8]} 44. Rxe5 {[%clk 0:00:34.2]}
44... g3 {[%clk 0:00:13.4]} 45. Rf5 {[%clk 0:00:32.8]} 45... Kf3 {[%clk
0:00:12.1]} 46. Kb5 {[%clk 0:00:30]} 46... g2 {[%clk 0:00:08.8]} 47. Rg5 {[%clk
0:00:29.9]} 47... Ne2 {[%clk 0:00:03.4]} 48. Rxg2 {[%clk 0:00:19.9]} 48... Kxg2
{[%clk 0:00:04.3]} 49. Kxb6 {[%clk 0:00:20]} 49... a4 {[%clk 0:00:04.6]} 50. Kb5
{[%clk 0:00:20.3]} 50... Nc3+ {[%clk 0:00:04.5]} 51. Kb4 {[%clk 0:00:20.5]}
51... Nb1 {[%clk 0:00:04.3]} 52. Kxa4 {[%clk 0:00:21]} 52... Nxa3 {[%clk
0:00:04.5]} 1/2-1/2

[Event "*** SCC Grand Prix: Titled Tuesday Blitz"]
[Site "Chess.com"]
[Date "2020.10.13"]
[Round "10"]
[White "BanjoKazooieN64"]
[Black "barriochess"]
[Result "1-0"]
[WhiteElo "2446"]
[BlackElo "2267"]
[TimeControl "180+1"]
[EndTime "11:55:25 PDT"]
[Termination "BanjoKazooieN64 won by resignation"]

1. d4 {[%clk 0:03:00.9]} 1... Nf6 {[%clk 0:02:56.8]} 2. e3 {[%clk 0:03:00.9]}
2... g6 {[%clk 0:02:56.5]} 3. Nf3 {[%clk 0:03:01]} 3... Bg7 {[%clk 0:02:57.4]}
4. Be2 {[%clk 0:03:01.4]} 4... O-O {[%clk 0:02:58.3]} 5. O-O {[%clk 0:03:01.7]}
5... d6 {[%clk 0:02:59.2]} 6. b3 {[%clk 0:03:02.1]} 6... c5 {[%clk 0:02:58]} 7.
dxc5 {[%clk 0:02:59.7]} 7... dxc5 {[%clk 0:02:57.6]} 8. Qxd8 {[%clk 0:02:59.3]}
8... Rxd8 {[%clk 0:02:57.3]} 9. Bb2 {[%clk 0:02:59.7]} 9... Bf5 {[%clk
0:02:56.6]} 10. Na3 {[%clk 0:02:56.8]} 10... Nc6 {[%clk 0:02:56.1]} 11. Nh4
{[%clk 0:02:54.5]} 11... Be4 {[%clk 0:02:45.7]} 12. Rfd1 {[%clk 0:02:35.4]}
12... Nb4 {[%clk 0:02:41.1]} 13. Rdc1 {[%clk 0:01:45.7]} 13... Rd7 {[%clk
0:01:40.6]} 14. Nf3 {[%clk 0:01:37.3]} 14... Rad8 {[%clk 0:01:35.3]} 15. c3
{[%clk 0:01:17.9]} 15... Nfd5 {[%clk 0:01:21.8]} 16. Nc4 {[%clk 0:01:08]} 16...
Bd3 {[%clk 0:01:11.2]} 17. cxb4 {[%clk 0:00:57.4]} 17... Bxc4 {[%clk 0:01:02.2]}
18. bxc4 {[%clk 0:00:48.4]} 18... Bxb2 {[%clk 0:01:01.2]} 19. cxd5 {[%clk
0:00:47.7]} 19... Bxa1 {[%clk 0:00:59.3]} 20. Rxa1 {[%clk 0:00:47.5]} 20... Rxd5
{[%clk 0:00:59]} 21. b5 {[%clk 0:00:39.3]} 21... e5 {[%clk 0:00:54.7]} 22. e4
{[%clk 0:00:37]} 22... R5d7 {[%clk 0:00:50.1]} 23. Kf1 {[%clk 0:00:31]} 23... f6
{[%clk 0:00:49.3]} 24. Bc4+ {[%clk 0:00:30.1]} 24... Kg7 {[%clk 0:00:49]} 25.
Bd5 {[%clk 0:00:30.3]} 25... b6 {[%clk 0:00:38.9]} 26. a4 {[%clk 0:00:30.2]}
26... Re7 {[%clk 0:00:34]} 27. Nd2 {[%clk 0:00:29.1]} 27... f5 {[%clk
0:00:33.9]} 28. f3 {[%clk 0:00:29.3]} 28... Kf6 {[%clk 0:00:31.9]} 29. Ke2
{[%clk 0:00:29.1]} 29... Red7 {[%clk 0:00:32]} 30. Nc4 {[%clk 0:00:27.7]} 30...
Rxd5 {[%clk 0:00:30.7]} 31. exd5 {[%clk 0:00:27.6]} 31... Rxd5 {[%clk
0:00:31.6]} 32. a5 {[%clk 0:00:28]} 32... Rd4 {[%clk 0:00:30.9]} 33. axb6 {[%clk
0:00:27.7]} 33... axb6 {[%clk 0:00:31.6]} 34. Nxb6 {[%clk 0:00:28]} 34... Kg5
{[%clk 0:00:31.2]} 35. Rb1 {[%clk 0:00:24.4]} 35... e4 {[%clk 0:00:29.1]} 36.
Nc8 {[%clk 0:00:20.1]} 36... exf3+ {[%clk 0:00:26.8]} 37. Kxf3 {[%clk
0:00:18.4]} 37... Rd8 {[%clk 0:00:26]} 38. Ne7 {[%clk 0:00:17]} 38... Rd7 {[%clk
0:00:24.3]} 39. b6 {[%clk 0:00:15.7]} 39... c4 {[%clk 0:00:10]} 40. b7 {[%clk
0:00:14.5]} 40... c3 {[%clk 0:00:06.6]} 41. b8=Q {[%clk 0:00:10.7]} 41... c2
{[%clk 0:00:06.9]} 42. Qf4+ {[%clk 0:00:07.8]} 42... Kf6 {[%clk 0:00:06.8]} 43.
Rb6+ {[%clk 0:00:06.4]} 43... Kxe7 {[%clk 0:00:07.1]} 44. Qe5+ {[%clk
0:00:05.4]} 44... Kf7 {[%clk 0:00:07.3]} 45. Qf6+ {[%clk 0:00:03.9]} 45... Ke8
{[%clk 0:00:06.5]} 46. Rb8+ {[%clk 0:00:04.1]} 1-0

[Event "*** SCC Grand Prix: Titled Tuesday Blitz"]
[Site "Chess.com"]
[Date "2020.10.13"]
[Round "10"]
[White "ExcitingTrap"]
[Black "redbaron8888"]
[Result "1-0"]
[WhiteElo "2334"]
[BlackElo "2500"]
[TimeControl "180+1"]
[EndTime "11:55:28 PDT"]
[Termination "ExcitingTrap won on time"]

1. e4 {[%clk 0:03:00.9]} 1... c5 {[%clk 0:02:58.8]} 2. Nf3 {[%clk 0:03:00.9]}
2... d6 {[%clk 0:02:59.1]} 3. Bb5+ {[%clk 0:02:58.3]} 3... Nd7 {[%clk
0:02:58.8]} 4. O-O {[%clk 0:02:57.8]} 4... Nf6 {[%clk 0:02:55.8]} 5. Re1 {[%clk
0:02:57.7]} 5... a6 {[%clk 0:02:54.8]} 6. Bf1 {[%clk 0:02:56.9]} 6... b5 {[%clk
0:02:49.6]} 7. d4 {[%clk 0:02:45.8]} 7... cxd4 {[%clk 0:02:47.7]} 8. Nxd4 {[%clk
0:02:46.7]} 8... Bb7 {[%clk 0:02:47.5]} 9. Bd3 {[%clk 0:02:44.1]} 9... g6 {[%clk
0:02:19.9]} 10. Nc3 {[%clk 0:02:34]} 10... Bg7 {[%clk 0:02:17.2]} 11. a3 {[%clk
0:02:30.5]} 11... O-O {[%clk 0:02:12.8]} 12. Be3 {[%clk 0:02:30.8]} 12... Rc8
{[%clk 0:02:11.5]} 13. f3 {[%clk 0:02:28.8]} 13... Qc7 {[%clk 0:01:58.4]} 14.
Bf1 {[%clk 0:02:25.9]} 14... Qb8 {[%clk 0:01:53.4]} 15. Qd2 {[%clk 0:02:24.7]}
15... Rfe8 {[%clk 0:01:50.9]} 16. Bh6 {[%clk 0:02:13.8]} 16... Bh8 {[%clk
0:01:48.6]} 17. Kh1 {[%clk 0:02:12.3]} 17... Ne5 {[%clk 0:01:38.6]} 18. Nd1
{[%clk 0:02:07.5]} 18... Nc4 {[%clk 0:01:26.4]} 19. Bxc4 {[%clk 0:02:06.6]}
19... Rxc4 {[%clk 0:01:27.3]} 20. c3 {[%clk 0:01:58.6]} 20... e5 {[%clk
0:01:08.2]} 21. Nc2 {[%clk 0:01:58.1]} 21... d5 {[%clk 0:01:07.8]} 22. Nde3
{[%clk 0:01:56.3]} 22... Rc5 {[%clk 0:01:05.9]} 23. exd5 {[%clk 0:01:54.1]}
23... Nxd5 {[%clk 0:01:05.1]} 24. Nxd5 {[%clk 0:01:53.5]} 24... Rxd5 {[%clk
0:01:06]} 25. Qf2 {[%clk 0:01:47.9]} 25... e4 {[%clk 0:01:03.8]} 26. fxe4 {[%clk
0:01:37.1]} 26... Rh5 {[%clk 0:01:03.7]} 27. Bf4 {[%clk 0:01:34.5]} 27... Be5
{[%clk 0:01:03.7]} 28. Rf1 {[%clk 0:01:11.2]} 28... Bxe4 {[%clk 0:00:50.5]} 29.
Ne3 {[%clk 0:01:02.8]} 29... Bxf4 {[%clk 0:00:42.6]} 30. Qxf4 {[%clk 0:01:03.7]}
30... Qxf4 {[%clk 0:00:42.9]} 31. Rxf4 {[%clk 0:01:04.3]} 31... Bb7 {[%clk
0:00:42.5]} 32. Ng4 {[%clk 0:01:00.4]} 32... Re2 {[%clk 0:00:28.5]} 33. Nf6+
{[%clk 0:00:53.5]} 33... Kf8 {[%clk 0:00:28.5]} 34. Nxh5 {[%clk 0:00:17.6]}
34... Rxg2 {[%clk 0:00:20]} 35. h4 {[%clk 0:00:18.1]} 35... gxh5 {[%clk
0:00:17.9]} 36. Raf1 {[%clk 0:00:15.4]} 36... Rxb2+ {[%clk 0:00:14.2]} 37. Kg1
{[%clk 0:00:14.8]} 37... Rg2+ {[%clk 0:00:14.3]} 38. Kh1 {[%clk 0:00:15.3]}
38... Rf2+ {[%clk 0:00:12]} 39. Kg1 {[%clk 0:00:14.7]} 39... Rg2+ {[%clk
0:00:12.2]} 40. Kh1 {[%clk 0:00:14.8]} 40... Rg4+ {[%clk 0:00:10.9]} 41. Kh2
{[%clk 0:00:13.9]} 41... Bd5 {[%clk 0:00:09.5]} 42. Rxg4 {[%clk 0:00:06.5]}
42... hxg4 {[%clk 0:00:10.4]} 43. Kg3 {[%clk 0:00:06.6]} 43... Be6 {[%clk
0:00:08.4]} 44. Kf4 {[%clk 0:00:05.9]} 44... Ke7 {[%clk 0:00:08]} 45. Kg5 {[%clk
0:00:05.8]} 1-0